fUST/lending_fUST_20260511
["ID","MTS","AMOUNT","RATE_DAILY","PERIOD"]
[421993887,1778429432000,-16280.0,8.608e-05,2]
[421993856,1778429432000,-1187.30518853,5.463e-05,2]
[421993857,1778429432000,-3743.00724153,5.518e-05,2]
[421993859,1778429432000,-384.79378228,5.659e-05,2]
[421993858,1778429432000,-5000.0,5.574e-05,2]
[421993862,1778429432000,-210.19096491,6.547e-05,2]
[421993861,1778429432000,-300.0,6.351e-05,2]
[421993860,1778429432000,-1200.0,5.686e-05,2]
[421993863,1778429432000,-300.0,6.676e-05,2]
[421993864,1778429432000,-300.0,6.676e-05,2]
[421993865,1778429432000,-300.0,6.677e-05,2]
[421993867,1778429432000,-300.0,6.677e-05,2]
[421993866,1778429432000,-300.0,6.677e-05,2]
[421993868,1778429432000,-300.0,6.677e-05,2]
[421993869,1778429432000,-300.0,6.677e-05,2]
[421993870,1778429432000,-300.0,6.677e-05,2]
[421993886,1778429432000,-3260.0,8.608e-05,2]
[421993873,1778429432000,-300.0,6.677e-05,2]
[421993883,1778429432000,-454.05666309,7.659e-05,2]
[421993884,1778429432000,-864.0,8.24e-05,2]
[421993885,1778429432000,-2880.79139984,8.608e-05,2]
[421993882,1778429432000,-1767.07218853,7.6e-05,2]
[421993880,1778429432000,-600.0,6.81e-05,2]
[421993879,1778429432000,-300.0,6.677e-05,2]
[421993872,1778429432000,-300.0,6.677e-05,2]
[421993881,1778429432000,-720.0,7.49e-05,2]
[421993877,1778429432000,-300.0,6.677e-05,2]
[421993874,1778429432000,-300.0,6.677e-05,2]
[421993871,1778429432000,-300.0,6.677e-05,2]
[421993876,1778429432000,-300.0,6.677e-05,2]
[421993875,1778429432000,-300.0,6.677e-05,2]
[421993878,1778429432000,-300.0,6.677e-05,2]
[421993895,1778429438000,-1483.71104754,8.608e-05,2]
[421993894,1778429438000,-213030.00618277,8.608e-05,2]
[421993912,1778429443000,-6656.57318528,8.608e-05,2]
[421993965,1778429446000,-1794.10112464,8.507e-05,2]
[421993966,1778429447000,-56275.54231802,8.507e-05,2]
[421993969,1778429447000,-1077.33476705,8.608e-05,2]
[421993967,1778429447000,-5000.0,8.522e-05,2]
[421993968,1778429447000,-62319.84052832,8.608e-05,2]
[421993980,1778429891000,-200.0,0.00015159,120]
[421993975,1778429891000,-200.0,0.00013595,120]
[421993976,1778429891000,-336.95859678,0.00013841,120]
[421993977,1778429891000,-336.95859678,0.00013982,120]
[421993978,1778429891000,-166.25324458,0.00014481,120]
[421993979,1778429891000,-200.0,0.00014628,120]
[421993982,1778429891000,-200.0,0.00015678,120]
[421993981,1778429891000,-200.0,0.00015416,120]
[421993983,1778429891000,-200.0,0.00016864,120]
[421993984,1778429891000,-200.0,0.00016946,120]
[421993985,1778429891000,-200.0,0.00017295,120]
[421993986,1778429891000,-200.0,0.00017329,120]
[421993988,1778429891000,-200.0,0.00017721,120]
[421993987,1778429891000,-200.0,0.00017517,120]
[421993989,1778429891000,-200.0,0.00017837,120]
[421993990,1778429892000,-200.0,0.0001828,120]
[421993991,1778429892000,-200.0,0.00018423,120]
[421993992,1778429910000,200.0,0.00018867,120]
[421993993,1778430030000,200.0,0.00018895,120]
[421993995,1778430210000,200.0,0.00018808,120]
[421993996,1778430211000,2001.86585073,0.00019178,120]
[421994005,1778430510000,200.0,0.00018938,120]
[421994047,1778430632000,-50000.0,7.945e-05,2]
[421994041,1778430632000,-2255.02768222,6.209e-05,2]
[421994040,1778430632000,-5000.0,6.147e-05,2]
[421994043,1778430632000,-411.46639187,6.498e-05,2]
[421994042,1778430632000,-151.0,6.272e-05,2]
[421994045,1778430632000,-1200.0,7.225e-05,2]
[421994049,1778430632000,-300.0,7.945e-05,2]
[421994053,1778430632000,-1680.0,7.947e-05,2]
[421994051,1778430632000,-300.0,7.945e-05,2]
[421994044,1778430632000,-151.0,7.125e-05,2]
[421994048,1778430632000,-300.0,7.945e-05,2]
[421994052,1778430632000,-225.0,7.945e-05,2]
[421994046,1778430632000,-176.747651,7.226e-05,2]
[421994054,1778430632000,-300.0,7.998e-05,2]
[421994050,1778430632000,-300.0,7.945e-05,2]
[421994055,1778430632000,-300.0,7.998e-05,2]
[421994103,1778430633000,-500.0,8.483e-05,2]
[421994093,1778430633000,-500.0,8.483e-05,2]
[421994104,1778430633000,-500.0,8.483e-05,2]
[421994102,1778430633000,-500.0,8.483e-05,2]
[421994089,1778430633000,-500.0,8.483e-05,2]
[421994088,1778430633000,-530.69185656,8.483e-05,2]
[421994095,1778430633000,-500.0,8.483e-05,2]
[421994087,1778430633000,-500.0,8.483e-05,2]
[421994086,1778430633000,-272.79009297,8.483e-05,2]
[421994085,1778430633000,-205.27528512,8.483e-05,2]
[421994094,1778430633000,-500.0,8.483e-05,2]
[421994096,1778430633000,-500.0,8.483e-05,2]
[421994097,1778430633000,-500.0,8.483e-05,2]
[421994098,1778430633000,-589.01267118,8.483e-05,2]
[421994100,1778430633000,-500.0,8.483e-05,2]
[421994101,1778430633000,-500.0,8.483e-05,2]
[421994106,1778430633000,-500.0,8.483e-05,2]
[421994105,1778430633000,-500.0,8.483e-05,2]
[421994107,1778430633000,-500.0,8.483e-05,2]
[421994114,1778430633000,-500.0,8.483e-05,2]
[421994113,1778430633000,-500.0,8.483e-05,2]
[421994108,1778430633000,-500.0,8.483e-05,2]
[421994111,1778430633000,-500.0,8.483e-05,2]
[421994110,1778430633000,-500.0,8.483e-05,2]
[421994084,1778430633000,-439.06521334,8.483e-05,2]
[421994099,1778430633000,-500.0,8.483e-05,2]
[421994092,1778430633000,-500.0,8.483e-05,2]
[421994067,1778430633000,-300.0,7.998e-05,2]
[421994090,1778430633000,-500.0,8.483e-05,2]
[421994056,1778430633000,-300.0,7.998e-05,2]
[421994066,1778430633000,-300.0,7.998e-05,2]
[421994112,1778430633000,-500.0,8.483e-05,2]
[421994069,1778430633000,-300.0,7.998e-05,2]
[421994058,1778430633000,-300.0,7.998e-05,2]
[421994057,1778430633000,-300.0,7.998e-05,2]
[421994068,1778430633000,-300.0,7.998e-05,2]
[421994062,1778430633000,-300.0,7.998e-05,2]
[421994059,1778430633000,-300.0,7.998e-05,2]
[421994060,1778430633000,-300.0,7.998e-05,2]
[421994063,1778430633000,-300.0,7.998e-05,2]
[421994065,1778430633000,-300.0,7.998e-05,2]
[421994091,1778430633000,-500.0,8.483e-05,2]
[421994070,1778430633000,-300.0,7.998e-05,2]
[421994074,1778430633000,-152.0,8.182e-05,7]
[421994079,1778430633000,-500.0,8.483e-05,2]
[421994078,1778430633000,-500.0,8.483e-05,2]
[421994076,1778430633000,-274.41,8.329e-05,2]
[421994080,1778430633000,-500.0,8.483e-05,2]
[421994077,1778430633000,-434.66993479,8.482e-05,2]
[421994073,1778430633000,-600.0,8.157e-05,2]
[421994071,1778430633000,-210.19096491,8.082e-05,2]
[421994075,1778430633000,-250.34453466,8.204e-05,2]
[421994081,1778430633000,-500.0,8.483e-05,2]
[421994083,1778430633000,-500.0,8.483e-05,2]
[421994082,1778430633000,-500.0,8.483e-05,2]
[421994072,1778430633000,-569.92349819,8.082e-05,2]
[421994115,1778430633000,-500.0,8.483e-05,2]
[421994130,1778430633000,-500.0,8.483e-05,2]
[421994117,1778430633000,-500.0,8.483e-05,2]
[421994144,1778430633000,-500.0,8.483e-05,2]
[421994147,1778430633000,-163.108,8.485e-05,2]
[421994150,1778430633000,-485.5303424,8.498e-05,2]
[421994152,1778430633000,-155.0,8.542e-05,2]
[421994109,1778430633000,-500.0,8.483e-05,2]
[421994161,1778430633000,-155.0,8.711e-05,2]
[421994156,1778430633000,-2208.121,8.686e-05,2]
[421994153,1778430633000,-164.65,8.587e-05,2]
[421994157,1778430633000,-649.823,8.686e-05,2]
[421994158,1778430633000,-1414.362,8.686e-05,2]
[421994160,1778430633000,-185.0,8.686e-05,2]
[421994159,1778430633000,-741.0,8.686e-05,2]
[421994155,1778430633000,-155.0,8.655e-05,2]
[421994154,1778430633000,-155.0,8.598e-05,2]
[421994162,1778430633000,-414.0,8.74e-05,2]
[421994164,1778430633000,-2351.0,8.742e-05,2]
[421994163,1778430633000,-420.0,8.74e-05,2]
[421994165,1778430633000,-456.3999724,8.754e-05,2]
[421994166,1778430633000,-155.0,8.768e-05,2]
[421994167,1778430633000,-500.0,8.779e-05,2]
[421994169,1778430633000,-500.0,8.801e-05,2]
[421994172,1778430633000,-500.0,8.801e-05,2]
[421994168,1778430633000,-500.0,8.801e-05,2]
[421994171,1778430633000,-500.0,8.801e-05,2]
[421994170,1778430633000,-500.0,8.801e-05,2]
[421994149,1778430633000,-14224.2465142,8.493e-05,2]
[421994148,1778430633000,-78803.81041339,8.487e-05,2]
[421994151,1778430633000,-500.0,8.505e-05,2]
[421994146,1778430633000,-500.0,8.483e-05,2]
[421994118,1778430633000,-500.0,8.483e-05,2]
[421994116,1778430633000,-500.0,8.483e-05,2]
[421994119,1778430633000,-500.0,8.483e-05,2]
[421994124,1778430633000,-500.0,8.483e-05,2]
[421994122,1778430633000,-500.0,8.483e-05,2]
[421994145,1778430633000,-500.0,8.483e-05,2]
[421994125,1778430633000,-500.0,8.483e-05,2]
[421994121,1778430633000,-500.0,8.483e-05,2]
[421994120,1778430633000,-500.0,8.483e-05,2]
[421994123,1778430633000,-500.0,8.483e-05,2]
[421994129,1778430633000,-500.0,8.483e-05,2]
[421994127,1778430633000,-500.0,8.483e-05,2]
[421994128,1778430633000,-500.0,8.483e-05,2]
[421994126,1778430633000,-500.0,8.483e-05,2]
[421994133,1778430633000,-500.0,8.483e-05,2]
[421994138,1778430633000,-500.0,8.483e-05,2]
[421994143,1778430633000,-500.0,8.483e-05,2]
[421994142,1778430633000,-199.99999999,8.483e-05,2]
[421994140,1778430633000,-263.45740425,8.483e-05,2]
[421994141,1778430633000,-500.0,8.483e-05,2]
[421994139,1778430633000,-500.0,8.483e-05,2]
[421994135,1778430633000,-500.0,8.483e-05,2]
[421994134,1778430633000,-500.0,8.483e-05,2]
[421994137,1778430633000,-500.0,8.483e-05,2]
[421994131,1778430633000,-500.0,8.483e-05,2]
[421994136,1778430633000,-500.0,8.483e-05,2]
[421994132,1778430633000,-500.0,8.483e-05,2]
[421994181,1778430634000,-155.0,8.824e-05,2]
[421994174,1778430634000,-432.0,8.801e-05,2]
[421994175,1778430634000,-500.0,8.801e-05,2]
[421994173,1778430634000,-500.0,8.801e-05,2]
[421994183,1778430634000,-4916.79529628,8.9e-05,2]
[421994177,1778430634000,-500.0,8.801e-05,2]
[421994184,1778430634000,-608.24692022,8.9e-05,2]
[421994182,1778430634000,-155.0,8.881e-05,2]
[421994179,1778430634000,-151.5,8.801e-05,2]
[421994180,1778430634000,-434.66993476,8.812e-05,2]
[421994176,1778430634000,-500.0,8.801e-05,2]
[421994185,1778430634000,-81346.9832884,8.9e-05,2]
[421994178,1778430634000,-431.30034552,8.801e-05,2]
[421994248,1778430638000,-663762.0330843,8.9e-05,2]
[421994245,1778430638000,-443.0,8.686e-05,2]
[421994416,1778430647000,-4863.7349572,8.9e-05,2]
[421994418,1778430647000,-4372.2918139,8.9e-05,2]
[421994424,1778430810000,200.0,0.00018962,120]
[421994425,1778430930000,200.0,0.00018169,120]
[421994426,1778430974000,1598.99,0.00019178,120]
[421994428,1778431137000,17535.56602816,0.00019,120]
[421994429,1778431290000,200.0,0.00018234,120]
[421994430,1778431351000,200.0,0.00017434,120]
[421994431,1778431410000,200.0,0.00018728,120]
[421994525,1778431816000,560.42,0.0001917,120]
[421994624,1778431833000,-416.97046578,7.123e-05,2]
[421994623,1778431833000,-427.51530598,7.023e-05,2]
[421994625,1778431833000,-1202.89432243,7.151e-05,2]
[421994626,1778431833000,-433.57935953,7.251e-05,2]
[421994622,1778431833000,-867.5887,6.953e-05,2]
[421994657,1778431837000,-2578.45472493,7.351e-05,2]
[421994656,1778431837000,-1928.80659956,7.251e-05,2]
[421994694,1778431838000,-112151.08797497,8.706e-05,2]
[421994683,1778431838000,-300.0,8.002e-05,2]
[421994687,1778431838000,-260.80196085,8.06e-05,2]
[421994686,1778431838000,-600.0,8.002e-05,2]
[421994688,1778431838000,-152.0,8.18e-05,7]
[421994689,1778431838000,-152.0,8.18e-05,7]
[421994695,1778431838000,-3521.87759575,8.747e-05,2]
[421994705,1778431838000,-65050.862333,8.82e-05,2]
[421994706,1778431838000,-60837.53051027,8.82e-05,2]
[421994699,1778431838000,-647.0,8.771e-05,2]
[421994697,1778431838000,-500.0,8.77e-05,2]
[421994696,1778431838000,-151.0,8.748e-05,2]
[421994716,1778431838000,-151.0,8.986e-05,2]
[421994698,1778431838000,-1411.0,8.771e-05,2]
[421994701,1778431838000,-443.0,8.771e-05,2]
[421994703,1778431838000,-185.0,8.771e-05,2]
[421994702,1778431838000,-741.0,8.771e-05,2]
[421994704,1778431838000,-720.0,8.802e-05,2]
[421994708,1778431838000,-431.8135918,8.89e-05,2]
[421994684,1778431838000,-300.0,8.002e-05,2]
[421994718,1778431838000,-1957.856,8.986e-05,2]
[421994717,1778431838000,-537.6845,8.986e-05,2]
[421994719,1778431838000,-155.0,8.994e-05,2]
[421994710,1778431838000,-10653.6635965,8.89e-05,2]
[421994709,1778431838000,-438.9011426,8.89e-05,2]
[421994700,1778431838000,-2220.796,8.771e-05,2]
[421994693,1778431838000,-260.80196085,8.687e-05,2]
[421994675,1778431838000,-300.0,8.002e-05,2]
[421994679,1778431838000,-300.0,8.002e-05,2]
[421994658,1778431838000,-1187.0,7.55e-05,2]
[421994659,1778431838000,-300.0,7.55e-05,2]
[421994661,1778431838000,-3136.17171978,7.651e-05,2]
[421994660,1778431838000,-2950.26605479,7.551e-05,2]
[421994663,1778431838000,-26273.49894005,7.746e-05,2]
[421994665,1778431838000,-26703.06711516,7.746e-05,2]
[421994664,1778431838000,-4773.43394479,7.746e-05,2]
[421994662,1778431838000,-260.80196088,7.746e-05,2]
[421994667,1778431838000,-3323.08838755,7.81e-05,2]
[421994677,1778431838000,-300.0,8.002e-05,2]
[421994678,1778431838000,-300.0,8.002e-05,2]
[421994669,1778431838000,-160.42208399,7.846e-05,2]
[421994668,1778431838000,-1000.0,7.846e-05,2]
[421994672,1778431838000,-300.0,8.002e-05,2]
[421994674,1778431838000,-300.0,8.002e-05,2]
[421994670,1778431838000,-300.0,8.002e-05,2]
[421994666,1778431838000,-5699.47785578,7.746e-05,2]
[421994673,1778431838000,-300.0,8.002e-05,2]
[421994671,1778431838000,-300.0,8.002e-05,2]
[421994707,1778431838000,-1085363.74551125,8.82e-05,2]
[421994676,1778431838000,-300.0,8.002e-05,2]
[421994680,1778431838000,-300.0,8.002e-05,2]
[421994690,1778431838000,-3509.0533043,8.279e-05,2]
[421994682,1778431838000,-300.0,8.002e-05,2]
[421994692,1778431838000,-260.80196085,8.373e-05,2]
[421994691,1778431838000,-420.0,8.305e-05,2]
[421994711,1778431838000,-3049.7206334,8.89e-05,2]
[421994685,1778431838000,-300.0,8.002e-05,2]
[421994714,1778431838000,-162.380719,8.986e-05,2]
[421994748,1778431838000,-529.0,9.3e-05,2]
[421994747,1778431838000,-250.68062882,9.294e-05,2]
[421994749,1778431838000,-668.65185757,9.316e-05,2]
[421994750,1778431838000,-2434.74389024,9.316e-05,2]
[421994751,1778431838000,-500.0,9.318e-05,2]
[421994753,1778431838000,-693.3919763,9.371e-05,2]
[421994752,1778431838000,-155.0,9.334e-05,2]
[421994754,1778431838000,-2524.82941417,9.371e-05,2]
[421994755,1778431838000,-719.04747942,9.426e-05,2]
[421994763,1778431838000,-773.2413689,9.536e-05,2]
[421994759,1778431838000,-793.0,9.5e-05,2]
[421994757,1778431838000,-659.767,9.439e-05,2]
[421994745,1778431838000,-2347.87260389,9.261e-05,2]
[421994758,1778431838000,-745.65223616,9.481e-05,2]
[421994762,1778431838000,-151.0,9.534e-05,2]
[421994761,1778431838000,-461.67526834,9.534e-05,2]
[421994764,1778431838000,-801.85129955,9.591e-05,2]
[421994766,1778431838000,-831.51979763,9.646e-05,2]
[421994768,1778431838000,-4588.88172696,9.684e-05,2]
[421994765,1778431838000,-500.0,9.592e-05,2]
[421994769,1778431838000,-800.0,9.69e-05,2]
[421994767,1778431838000,-864.0,9.682e-05,2]
[421994770,1778431838000,-400.0,9.69e-05,3]
[421994772,1778431838000,-894.19061326,9.756e-05,2]
[421994771,1778431838000,-862.28603014,9.701e-05,2]
[421994712,1778431838000,-509.85308171,8.9e-05,2]
[421994760,1778431838000,-1702.12946364,9.506e-05,2]
[421994746,1778431838000,-155.0,9.277e-05,2]
[421994756,1778431838000,-2178.53969751,9.426e-05,2]
[421994742,1778431838000,-3836.59793888,9.216e-05,2]
[421994715,1778431838000,-445.202766,8.986e-05,2]
[421994738,1778431838000,-2183.31810187,9.151e-05,2]
[421994713,1778431838000,-155.0,8.938e-05,2]
[421994721,1778431838000,-151.0,9e-05,2]
[421994730,1778431838000,-155.0,9.051e-05,2]
[421994720,1778431838000,-83713.0823076,9e-05,2]
[421994732,1778431838000,-2105.41764886,9.096e-05,2]
[421994722,1778431838000,-151.0,9e-05,2]
[421994731,1778431838000,-578.20924308,9.096e-05,2]
[421994724,1778431838000,-151.0,9e-05,2]
[421994723,1778431838000,-260.80196085,9e-05,2]
[421994726,1778431838000,-153.699276,9e-05,2]
[421994728,1778431838000,-2030.296672,9.041e-05,2]
[421994729,1778431838000,-500.0,9.044e-05,2]
[421994725,1778431838000,-151.0,9e-05,2]
[421994743,1778431838000,-155.0,9.22e-05,2]
[421994727,1778431838000,-557.5788265,9.041e-05,2]
[421994741,1778431838000,-2264.10087164,9.206e-05,2]
[421994739,1778431838000,-155.0,9.164e-05,2]
[421994737,1778431838000,-599.60298507,9.151e-05,2]
[421994744,1778431838000,-644.79446246,9.261e-05,2]
[421994740,1778431838000,-621.78829552,9.206e-05,2]
[421994734,1778431838000,-492.02514962,9.123e-05,2]
[421994735,1778431838000,-500.0,9.127e-05,2]
[421994733,1778431838000,-155.0,9.107e-05,2]
[421994736,1778431838000,-587.0,9.136e-05,2]
[421994825,1778431839000,-151.0,0.0001,2]
[421994815,1778431839000,-151.0,0.0001,2]
[421994811,1778431839000,-151.0,0.0001,2]
[421994812,1778431839000,-151.0,0.0001,2]
[421994805,1778431839000,-32980.18355872,0.0001,2]
[421994804,1778431839000,-69032.0,0.0001,2]
[421994807,1778431839000,-323.89211649,0.0001,2]
[421994806,1778431839000,-3268.33619067,0.0001,2]
[421994810,1778431839000,-2570.77753441,0.0001,2]
[421994816,1778431839000,-151.0,0.0001,2]
[421994808,1778431839000,-848.92916192,0.0001,2]
[421994809,1778431839000,-1000.0,0.0001,2]
[421994826,1778431839000,-151.0,0.0001,2]
[421994829,1778431839000,-151.0,0.0001,2]
[421994814,1778431839000,-151.0,0.0001,2]
[421994817,1778431839000,-151.0,0.0001,2]
[421994822,1778431839000,-151.0,0.0001,2]
[421994819,1778431839000,-151.0,0.0001,2]
[421994824,1778431839000,-151.0,0.0001,2]
[421994821,1778431839000,-151.0,0.0001,2]
[421994820,1778431839000,-151.0,0.0001,2]
[421994823,1778431839000,-151.0,0.0001,2]
[421994827,1778431839000,-151.0,0.0001,2]
[421994838,1778431839000,-478.75725327,0.00010082,2]
[421994828,1778431839000,-151.0,0.0001,2]
[421994813,1778431839000,-151.0,0.0001,2]
[421994835,1778431839000,-206.54,0.0001,2]
[421994818,1778431839000,-151.0,0.0001,2]
[421994802,1778431839000,-154.64,0.0001,2]
[421994775,1778431839000,-31526.528671,9.8e-05,2]
[421994798,1778431839000,-207.6,0.0001,21]
[421994836,1778431839000,-823.0,0.00010049,2]
[421994776,1778431839000,-302.09860514,9.8e-05,2]
[421994773,1778431839000,-1085.83986156,9.767e-05,2]
[421994774,1778431839000,-4268.0,9.8e-05,2]
[421994778,1778431839000,-151.0,9.814e-05,2]
[421994788,1778431839000,-282.352996,9.962e-05,2]
[421994780,1778431839000,-151.0,9.814e-05,2]
[421994777,1778431839000,-927.27566595,9.811e-05,2]
[421994779,1778431839000,-151.0,9.814e-05,2]
[421994781,1778431839000,-160.0,9.841e-05,3]
[421994783,1778431839000,-500.0,9.866e-05,2]
[421994782,1778431839000,-961.58486559,9.866e-05,2]
[421994784,1778431839000,-704.73386698,9.913e-05,2]
[421994803,1778431839000,-151.0,0.0001,2]
[421994785,1778431839000,-997.16350561,9.921e-05,2]
[421994786,1778431839000,-192.617752,9.962e-05,2]
[421994792,1778431839000,-160.0,9.962e-05,2]
[421994793,1778431839000,-446.710365,9.962e-05,2]
[421994789,1778431839000,-404.705993,9.962e-05,2]
[421994791,1778431839000,-17679.495301,9.962e-05,2]
[421994794,1778431839000,-35198.990602,9.962e-05,2]
[421994800,1778431839000,-2382.37302409,0.0001,2]
[421994796,1778431839000,-237.402554,9.962e-05,2]
[421994801,1778431839000,-341.61918103,0.0001,2]
[421994790,1778431839000,-160.0,9.962e-05,2]
[421994797,1778431839000,-2223.26997792,0.0001,8]
[421994799,1778431839000,-496.43987476,0.0001,2]
[421994795,1778431839000,-733.420731,9.962e-05,2]
[421994787,1778431839000,-160.0,9.962e-05,2]
[421994830,1778431839000,-151.0,0.0001,2]
[421994879,1778431839000,-15005.42459598,0.000108,2]
[421994834,1778431839000,-186.38,0.0001,2]
[421994872,1778431839000,-186.01224606,0.0001063,2]
[421994873,1778431839000,-415.41085366,0.0001063,2]
[421994869,1778431839000,-400.0,0.000106,4]
[421994867,1778431839000,-151.0,0.00010584,2]
[421994868,1778431839000,-1000.0,0.000106,2]
[421994874,1778431839000,-1000.0,0.00010651,2]
[421994871,1778431839000,-3883.9429109,0.00010625,21]
[421994876,1778431839000,-4998.95646853,0.000107,2]
[421994870,1778431839000,-5341.16551504,0.00010621,2]
[421994882,1778431839000,-151.0,0.000108,2]
[421994899,1778431839000,-2000.0,0.00010848,2]
[421994884,1778431839000,-2000.0,0.00010848,2]
[421994878,1778431839000,-151.0,0.00010739,2]
[421994875,1778431839000,-500.0,0.00010688,2]
[421994881,1778431839000,-151.0,0.000108,2]
[421994883,1778431839000,-2000.0,0.00010848,2]
[421994886,1778431839000,-2000.0,0.00010848,2]
[421994887,1778431839000,-2000.0,0.00010848,2]
[421994885,1778431839000,-2000.0,0.00010848,2]
[421994890,1778431839000,-2000.0,0.00010848,2]
[421994891,1778431839000,-2000.0,0.00010848,2]
[421994892,1778431839000,-2000.0,0.00010848,2]
[421994894,1778431839000,-2000.0,0.00010848,2]
[421994896,1778431839000,-2000.0,0.00010848,2]
[421994897,1778431839000,-2000.0,0.00010848,2]
[421994898,1778431839000,-2000.0,0.00010848,2]
[421994893,1778431839000,-2000.0,0.00010848,2]
[421994837,1778431839000,-151.0,0.00010082,2]
[421994889,1778431839000,-2000.0,0.00010848,2]
[421994877,1778431839000,-6336.26219801,0.00010734,2]
[421994880,1778431839000,-154691.0,0.000108,2]
[421994863,1778431839000,-423587.3910123,0.00010482,2]
[421994832,1778431839000,-151.0,0.0001,2]
[421994866,1778431839000,-160.0,0.00010515,5]
[421994833,1778431839000,-151.0,0.0001,2]
[421994831,1778431839000,-151.0,0.0001,2]
[421994850,1778431839000,-948.83063762,0.00010234,2]
[421994840,1778431839000,-160.0,0.00010106,2]
[421994839,1778431839000,-161.61126227,0.00010106,2]
[421994843,1778431839000,-160.0,0.00010106,2]
[421994851,1778431839000,-2818.93546792,0.00010323,2]
[421994846,1778431839000,-160.0,0.00010178,4]
[421994844,1778431839000,-500.0,0.0001014,2]
[421994847,1778431839000,-155.0,0.00010182,2]
[421994841,1778431839000,-160.0,0.00010106,2]
[421994845,1778431839000,-4681.36923242,0.00010152,2]
[421994842,1778431839000,-160.0,0.00010106,2]
[421994848,1778431839000,-159.0,0.000102,2]
[421994865,1778431839000,-157.91,0.0001051,2]
[421994849,1778431839000,-159.0,0.000102,2]
[421994862,1778431839000,-913.725748,0.0001046,2]
[421994859,1778431839000,-5100.10345911,0.0001043,2]
[421994857,1778431839000,-500.0,0.00010414,2]
[421994861,1778431839000,-24108.402683,0.0001046,2]
[421994864,1778431839000,-25262.66284097,0.00010489,2]
[421994858,1778431839000,-179.1025,0.00010415,21]
[421994856,1778431839000,-325.7824685,0.00010381,2]
[421994854,1778431839000,-151.0,0.00010372,2]
[421994852,1778431839000,-163.09729822,0.00010355,2]
[421994855,1778431839000,-151.0,0.00010372,2]
[421994860,1778431839000,-385.026813,0.0001046,2]
[421994949,1778431840000,-500.0,0.00010957,2]
[421994947,1778431840000,-500.0,0.00010957,2]
[421994939,1778431840000,-14996.93227159,0.000109,2]
[421994944,1778431840000,-500.0,0.00010957,2]
[421994938,1778431840000,-2000.0,0.00010897,2]
[421994936,1778431840000,-2000.0,0.00010897,2]
[421994942,1778431840000,-500.0,0.00010957,2]
[421994932,1778431840000,-2000.0,0.00010897,2]
[421994946,1778431840000,-500.0,0.00010957,2]
[421994934,1778431840000,-2000.0,0.00010897,2]
[421994951,1778431840000,-500.0,0.00010957,2]
[421994940,1778431840000,-160.0,0.000109,2]
[421994948,1778431840000,-500.0,0.00010957,2]
[421994963,1778431840000,-500.0,0.00010958,2]
[421994958,1778431840000,-500.0,0.00010958,2]
[421994950,1778431840000,-500.0,0.00010957,2]
[421994952,1778431840000,-500.0,0.00010957,2]
[421994959,1778431840000,-1314.6639,0.00010958,2]
[421994955,1778431840000,-500.0,0.00010958,2]
[421994954,1778431840000,-182.23710403,0.00010957,2]
[421994957,1778431840000,-4888.129564,0.00010958,2]
[421994956,1778431840000,-3214.2433,0.00010958,2]
[421994960,1778431840000,-500.0,0.00010958,2]
[421994961,1778431840000,-390.62948498,0.00010958,2]
[421994969,1778431840000,-1983.96,0.00010958,2]
[421994971,1778431840000,-1413.1552,0.00010958,2]
[421994973,1778431840000,-500.0,0.00010958,2]
[421994943,1778431840000,-500.0,0.00010957,2]
[421994953,1778431840000,-500.0,0.00010957,2]
[421994945,1778431840000,-500.0,0.00010957,2]
[421994902,1778431840000,-2000.0,0.00010848,2]
[421994926,1778431840000,-2000.0,0.00010897,2]
[421994904,1778431840000,-2000.0,0.00010848,2]
[421994962,1778431840000,-500.0,0.00010958,2]
[421994903,1778431840000,-2000.0,0.00010848,2]
[421994900,1778431840000,-2000.0,0.00010848,2]
[421994901,1778431840000,-2000.0,0.00010848,2]